bitfinex/quotes_BTCUSD_20251011
["timestamp","ask_amount","ask_price","bid_price","bid_amount"]
[1760163785597,1.08420559,112950.0,112940.0,0.00151989]
[1760163786837,0.58914949,112950.0,112940.0,0.00151989]
[1760163787050,0.21544949,112950.0,112940.0,0.06479493]
[1760163787469,0.55544949,112950.0,112940.0,0.06479493]
[1760163787684,0.58914949,112950.0,112940.0,0.06479493]
[1760163787887,0.24914949,112950.0,112940.0,0.06479493]
[1760163788498,0.21544949,112950.0,112940.0,0.06479493]
[1760163788707,0.71050559,112950.0,112940.0,0.06479493]
[1760163788930,1.05050559,112950.0,112940.0,0.06479493]
[1760163789133,0.55544949,112950.0,112940.0,0.06479493]
[1760163789748,0.55544949,112950.0,112940.0,0.17860506]
[1760163789953,0.34,112950.0,112940.0,0.17860506]
[1760163790189,0.51706949,112950.0,112940.0,0.00151989]
[1760163790392,0.55544949,112950.0,112940.0,0.00151989]
[1760163790604,0.34,112950.0,112940.0,0.17860506]
[1760163791351,0.34,112950.0,112940.0,0.25742942]
[1760163792866,0.36199,112950.0,112940.0,0.25742942]
[1760163793144,0.36199,112950.0,112940.0,0.17860506]
[1760163793346,0.37838,112950.0,112940.0,0.17860506]
[1760163795374,0.34,112950.0,112940.0,0.17860506]
[1760163795573,0.34,112950.0,112940.0,0.25742942]
[1760163796058,0.34,112950.0,112940.0,0.17860506]
[1760163796793,0.34,112950.0,112940.0,0.25742942]
[1760163798347,0.36151,112950.0,112940.0,0.25742942]
[1760163799017,0.3794,112950.0,112940.0,0.25742942]
[1760163799641,0.35789,112950.0,112940.0,0.25742942]
[1760163800362,0.3794,112950.0,112940.0,0.25742942]
[1760163800789,0.59200949,112950.0,112940.0,0.25742942]
[1760163801423,0.55646949,112950.0,112940.0,0.25742942]
[1760163801825,0.3794,112950.0,112940.0,0.25742942]
[1760163803467,0.55646949,112950.0,112940.0,0.25742942]
[1760163803674,0.3794,112950.0,112940.0,0.25742942]
[1760163805366,0.55646949,112950.0,112940.0,0.25742942]
[1760163807359,0.35789,112950.0,112940.0,0.25742942]
[1760163807568,0.3794,112950.0,112940.0,0.17860506]
[1760163807785,0.0394,112950.0,112940.0,0.17860506]
[1760163812478,0.01789,112950.0,112940.0,0.17860506]
[1760163812882,0.0394,112950.0,112940.0,0.17860506]
[1760163814947,0.3794,112950.0,112940.0,0.17860506]
[1760163816122,0.55646949,112950.0,112940.0,0.17860506]
[1760163816322,1.08673744,112950.0,112940.0,0.0648162]
[1760163816543,1.08673744,112950.0,112940.0,0.06482244]
[1760163817741,1.08673744,112950.0,112940.0,0.00151989]
[1760163817959,1.08673744,112950.0,112940.0,0.08052338]
[1760163818537,0.59200949,112950.0,112940.0,0.08052338]
[1760163818930,1.08673744,112950.0,112940.0,0.08052338]
[1760163819256,0.47227194,112950.0,112940.0,0.00151989]
[1760163819452,1.00639989,112950.0,112940.0,0.00151989]
[1760163820137,1.00639989,112950.0,112940.0,0.06480253]
[1760163822937,0.74673744,112950.0,112940.0,0.00151989]
[1760163824943,1.08673744,112950.0,112940.0,0.00151989]
[1760163828489,1.11338971,112950.0,112940.0,0.00151989]
[1760163829358,1.11371968,112950.0,112940.0,0.00151989]
[1760163832321,1.14335002,112950.0,112940.0,0.00151989]
[1760163832867,1.11835003,112950.0,112940.0,0.06480253]
[1760163833068,1.14335002,112950.0,112940.0,0.06480253]
[1760163833254,1.11835003,112950.0,112940.0,0.06480253]
[1760163833698,1.14335002,112950.0,112940.0,0.06480253]
[1760163834309,1.11835003,112950.0,112940.0,0.06480253]
[1760163834973,1.11835003,112950.0,112940.0,0.00151989]
[1760163835586,1.11835003,112950.0,112940.0,0.06476377]
[1760163835793,1.11835003,112950.0,112940.0,0.00151989]
[1760163835997,1.11835003,112950.0,112940.0,0.06476324]
[1760163836340,1.14335002,112950.0,112940.0,0.06476324]
[1760163837800,1.14335002,112950.0,112940.0,0.06176324]
[1760163838413,1.11835003,112950.0,112940.0,0.06176324]
[1760163838808,1.14335002,112950.0,112940.0,0.06176324]
[1760163839984,0.51708517,112940.0,112920.0,0.08400349]
[1760163840209,1.02893877,112930.0,112920.0,0.08400349]
[1760163840424,1.08507877,112930.0,112920.0,0.08400349]
[1760163840620,1.11173329,112930.0,112920.0,0.08400349]
[1760163841442,0.61667537,112930.0,112920.0,0.08400349]
[1760163843464,1.11173329,112930.0,112920.0,0.08400349]
[1760163844394,0.01678,112940.0,112930.0,0.17710085]
[1760163844603,0.01678,112940.0,112930.0,0.21403085]
[1760163844604,0.21631517,112940.0,112930.0,0.21403085]
[1760163844792,0.40587964,112940.0,112930.0,0.21403085]
[1760163845096,0.40587964,112940.0,112930.0,0.29303434]
[1760163845299,0.02664964,112940.0,112930.0,0.29303434]
[1760163845459,0.22959691,112950.0,112930.0,0.29360798]
[1760163845698,0.02245,112940.0,112930.0,0.29360798]
[1760163845882,0.36245,112940.0,112930.0,0.29360798]
[1760163846441,0.34,112940.0,112930.0,0.32167798]
[1760163846579,0.38548359,112950.0,112940.0,0.17708517]
[1760163846795,0.58500308,112950.0,112940.0,0.19960517]
[1760163847164,0.61869308,112950.0,112930.0,0.29915798]
[1760163847364,0.61869308,112950.0,112930.0,0.27108798]
[1760163847625,0.58500308,112950.0,112940.0,0.19960517]
[1760163847827,0.58500308,112950.0,112930.0,0.27108798]
[1760163848056,0.61869308,112950.0,112930.0,0.27108798]
[1760163848255,0.58500308,112950.0,112940.0,0.19960517]
[1760163848994,0.61869308,112950.0,112930.0,0.29915798]
[1760163849412,0.58500308,112950.0,112940.0,0.19960517]
[1760163850386,0.82668359,112950.0,112940.0,0.19960517]
[1760163850612,0.80003632,112950.0,112940.0,0.19960517]
[1760163850947,0.99955581,112950.0,112940.0,0.19960517]
[1760163851753,0.82248632,112950.0,112940.0,0.19960517]
[1760163852190,0.78214632,112950.0,112940.0,0.19960517]
[1760163853216,0.00094632,112950.0,112940.0,0.22695517]
[1760163853426,0.00094632,112950.0,112940.0,0.30595866]
[1760163853622,0.20154237,112970.0,112960.0,0.17705382]
[1760163853826,0.61404237,112970.0,112960.0,0.17705382]
[1760163854173,0.34,112960.0,112950.0,0.19072949]
[1760163854369,0.34,112960.0,112950.0,0.21282949]
[1760163854785,0.34,112960.0,112950.0,0.29183298]
[1760163855246,0.34,112960.0,112950.0,0.21282949]
[1760163855471,5e-05,112970.0,112960.0,0.17705382]
[1760163855735,0.25593642,112990.0,112980.0,0.17702248]
[1760163855949,0.57847642,112990.0,112980.0,0.24666248]
[1760163856169,0.77804323,112990.0,112980.0,0.03734]
[1760163856383,0.79555323,112990.0,112980.0,0.21436248]
[1760163856613,0.61854642,112990.0,112980.0,0.21436248]
[1760163856840,0.55183766,112990.0,112980.0,0.24666248]
[1760163857762,0.75140447,112990.0,112980.0,0.21436248]
[1760163857992,0.55183766,112990.0,112980.0,0.24666248]
[1760163858216,0.57439766,112990.0,112980.0,0.21436248]
[1760163858432,0.55183766,112990.0,112980.0,0.24666248]
[1760163859575,0.57439766,112990.0,112980.0,0.21436248]
[1760163860426,0.55183766,112990.0,112980.0,0.24666248]
[1760163860630,0.55183766,112990.0,112980.0,0.30985565]
[1760163861951,0.21183766,112990.0,112980.0,0.24666248]
[1760163862667,0.21183766,112990.0,112980.0,0.27681438]
[1760163862854,0.19743365,112990.0,112980.0,0.93661289]
[1760163863057,0.19743365,112990.0,112980.0,1.01561587]
[1760163863266,0.19743365,112990.0,112980.0,1.01661587]
[1760163863492,0.19743365,112990.0,112980.0,1.03761238]
[1760163864100,0.19743365,112990.0,112980.0,1.43861238]
[1760163864509,4.07248843,113000.0,112990.0,0.2321587]
[1760163864734,4.07248843,113000.0,112990.0,0.37118971]
[1760163864735,4.07298852,113000.0,112990.0,0.37118971]
[1760163864968,4.0758548,113000.0,112990.0,0.37118971]
[1760163865195,4.0758548,113000.0,112990.0,0.3083928]
[1760163865401,4.0758548,113000.0,112990.0,0.77116899]
[1760163865848,4.0758548,113000.0,112990.0,0.77316899]
[1760163866053,4.0758548,113000.0,112990.0,0.77416899]
[1760163866694,4.0758548,113000.0,112990.0,0.87416899]
[1760163868462,4.0758548,113000.0,112990.0,0.8113928]
[1760163870465,4.0758548,113000.0,112990.0,1.46300029]
[1760163872741,4.06721371,113000.0,112990.0,1.46300029]
[1760163873152,4.06721371,113000.0,112990.0,0.8113928]
[1760163873352,4.06721371,113000.0,112990.0,1.46300029]
[1760163874602,4.06721371,113000.0,112990.0,1.52577648]
[1760163874830,4.05281135,113000.0,112990.0,1.46300029]
[1760163875037,4.00268141,113000.0,112990.0,0.8113928]
[1760163875870,3.78999289,113000.0,112990.0,0.8113928]
[1760163877628,3.78423189,113000.0,112990.0,0.8113928]
[1760163878260,3.78423189,113000.0,112990.0,0.78639281]
[1760163878511,4.37367304,113000.0,112990.0,0.1111741]
[1760163878714,4.37367304,113000.0,112990.0,0.0111741]
[1760163879519,4.37367304,113000.0,112990.0,0.0091741]
[1760163879750,0.34,112980.0,112960.0,0.01678]
[1760163880116,0.53569497,112970.0,112960.0,0.02495142]
[1760163880354,0.55825497,112970.0,112960.0,0.02495142]
[1760163880562,0.55825497,112970.0,112960.0,0.04705142]
[1760163880772,0.59063497,112970.0,112950.0,0.19072556]
[1760163880995,0.55710815,112970.0,112960.0,0.001]
[1760163881202,1.20871564,112970.0,112960.0,0.001]
[1760163881409,0.5433836,112980.0,112960.0,0.24823382]
[1760163881613,0.2262378,112970.0,112960.0,0.03888]
[1760163881817,0.19959815,112970.0,112960.0,0.03988]
[1760163882033,0.21710815,112970.0,112950.0,0.22478888]
[1760163882239,0.07245,112970.0,112960.0,0.17805382]
[1760163882444,0.04007,112970.0,112960.0,0.20015382]
[1760163882655,0.24948815,112970.0,112960.0,0.17805382]
[1760163882853,0.24948815,112970.0,112960.0,0.17905382]
[1760163883477,0.90109564,112970.0,112960.0,0.002]
[1760163884113,1.24109564,112970.0,112960.0,0.002]
[1760163885506,1.24109564,112970.0,112960.0,0.001]
[1760163885760,0.51706949,112950.0,112940.0,0.00094635]
[1760163885927,1.18528698,112950.0,112940.0,0.00094635]
[1760163886139,1.24277698,112950.0,112940.0,0.00094635]
[1760163886980,1.24277698,112950.0,112940.0,0.00199635]
[1760163887317,1.24277698,112950.0,112940.0,0.00099635]
[1760163888818,1.24277698,112950.0,112940.0,0.00199635]
[1760163889255,1.24277698,112950.0,112940.0,0.00099635]
[1760163891106,0.59116949,112950.0,112940.0,0.00099635]
[1760163891285,1.24277698,112950.0,112940.0,0.00099635]
[1760163891682,1.26943076,112950.0,112940.0,0.00099635]
[1760163892813,0.61782327,112950.0,112940.0,0.00099635]
[1760163893022,1.26943076,112950.0,112940.0,0.00099635]
[1760163904221,1.26697755,112950.0,112940.0,0.00099635]
[1760163904421,1.23764971,112950.0,112940.0,0.00099635]
[1760163906259,1.2541622,112950.0,112940.0,0.00099635]
[1760163909601,1.09776477,112950.0,112940.0,0.00099635]
[1760163912404,1.29412516,112930.0,112920.0,0.005]
[1760163912606,1.5045985,112930.0,112920.0,0.00505]
[1760163912824,1.5597585,112930.0,112920.0,0.00505]
[1760163912999,1.65975849,112930.0,112920.0,0.00505]
[1760163913203,1.68475848,112930.0,112920.0,0.00505]
[1760163915254,0.69433836,112930.0,112920.0,0.00505]
[1760163915474,0.59433837,112930.0,112920.0,0.00505]
[1760163915697,1.06454844,112930.0,112920.0,0.00505]
[1760163915906,1.16454843,112930.0,112920.0,0.00505]
[1760163916391,1.16917998,112930.0,112920.0,0.00505]
[1760163916582,1.69039003,112930.0,112920.0,0.00505]
[1760163916953,1.19517997,112930.0,112920.0,0.00505]
[1760163917260,1.19523591,112930.0,112920.0,0.00505]
[1760163917695,1.09523592,112930.0,112920.0,0.00505]
[1760163917855,1.19523591,112930.0,112920.0,0.00505]
[1760163918038,1.19523591,112930.0,112920.0,0.0061974]
[1760163918039,1.09523592,112930.0,112920.0,0.0061974]
[1760163918444,1.19523591,112930.0,112920.0,0.0061974]
[1760163919417,1.17023592,112930.0,112920.0,0.0061974]
[1760163919746,1.07023593,112930.0,112920.0,0.0061974]
[1760163920497,1.17023592,112930.0,112920.0,0.0061974]
[1760163921591,1.19523591,112930.0,112920.0,0.0061974]
[1760163922221,1.22189964,112930.0,112920.0,0.0061974]
[1760163922432,1.22191034,112930.0,112920.0,0.0061974]
[1760163923693,1.19691035,112930.0,112920.0,0.0061974]
[1760163924492,1.09691036,112930.0,112920.0,0.0061974]
[1760163925018,1.19691035,112930.0,112920.0,0.0061974]
[1760163925424,1.22191034,112930.0,112920.0,0.0061974]
[1760163925664,1.19691035,112930.0,112920.0,0.0061974]
[1760163926073,1.09691036,112930.0,112920.0,0.0061974]
[1760163926276,1.19691035,112930.0,112920.0,0.0061974]
[1760163926495,1.09691036,112930.0,112920.0,0.0061974]
[1760163926698,1.19691035,112930.0,112920.0,0.0061974]
[1760163927276,1.09691036,112930.0,112920.0,0.0061974]
[1760163927479,1.19691035,112930.0,112920.0,0.0061974]
[1760163927857,1.09691036,112930.0,112920.0,0.0061974]
[1760163928057,1.19691035,112930.0,112920.0,0.0061974]
[1760163929351,1.09691036,112930.0,112920.0,0.0061974]
[1760163929562,0.29799526,112930.0,112920.0,0.0061974]
[1760163929771,0.78857377,112930.0,112920.0,0.0061974]
[1760163929984,1.12857377,112930.0,112920.0,0.0061974]
[1760163930207,0.75556377,112930.0,112920.0,0.0282974]
[1760163930409,1.06890004,112930.0,112920.0,0.0434974]
[1760163930769,1.05232091,112930.0,112920.0,0.0434974]
[1760163931386,1.08542091,112930.0,112920.0,0.06897359]
[1760163932024,1.05132091,112930.0,112920.0,0.09107359]
[1760163932335,1.08542091,112930.0,112920.0,0.06897359]
[1760163937421,1.08542091,112930.0,112920.0,0.0061974]
[1760163938578,1.07798014,112930.0,112920.0,0.0282974]
[1760163938935,1.11208014,112930.0,112920.0,0.06940567]
[1760163941049,1.6072902,112930.0,112920.0,0.06940567]
[1760163941227,1.73692136,112930.0,112920.0,0.0061974]
[1760163941412,1.73716062,112930.0,112920.0,0.0061974]
[1760163942934,1.75375628,112930.0,112920.0,0.0061974]
[1760163943156,1.25854622,112930.0,112920.0,0.0061974]
[1760163943358,0.88526056,112930.0,112920.0,0.0061974]
[1760163944132,0.90185552,112930.0,112920.0,0.0061974]
[1760163944331,0.88526056,112930.0,112920.0,0.0061974]
[1760163944928,0.8850213,112930.0,112920.0,0.0061974]
[1760163945366,1.2250213,112930.0,112920.0,0.0061974]
[1760163945732,1.12502131,112930.0,112920.0,0.0061974]
[1760163945970,1.2250213,112930.0,112920.0,0.0061974]
[1760163946511,1.12502131,112930.0,112920.0,0.0061974]
[1760163946749,1.2250213,112930.0,112920.0,0.0061974]
[1760163947224,1.12502131,112930.0,112920.0,0.0061974]
[1760163947406,1.2250213,112930.0,112920.0,0.0061974]
[1760163949049,1.12502131,112930.0,112920.0,0.0061974]
[1760163949227,1.2250213,112930.0,112920.0,0.0061974]
[1760163950712,1.72023136,112930.0,112920.0,0.0061974]
[1760163952024,1.72123136,112930.0,112920.0,0.0061974]
[1760163953047,1.2260213,112930.0,112920.0,0.0061974]
[1760163953859,1.07818892,112930.0,112920.0,0.0061974]
[1760163954070,1.20485288,112930.0,112920.0,0.0061974]
[1760163954312,1.10485289,112930.0,112920.0,0.0061974]
[1760163954487,1.20485288,112930.0,112920.0,0.0061974]
[1760163955580,1.0798529,112930.0,112920.0,0.0061974]
[1760163956452,1.04855775,112930.0,112920.0,0.0061974]
[1760163957328,1.04755775,112930.0,112920.0,0.0061974]
[1760163958045,1.02755775,112930.0,112920.0,0.0061974]
[1760163960471,1.02755775,112930.0,112920.0,0.0289774]
[1760163960666,0.67231091,112930.0,112920.0,0.0796674]
[1760163961077,0.17710085,112930.0,112920.0,0.25678394]
[1760163961497,0.18131085,112930.0,112920.0,0.0458474]
[1760163961718,0.17710085,112930.0,112920.0,0.0796674]
[1760163961947,0.51710085,112930.0,112920.0,0.0796674]
[1760163963430,1.01231091,112930.0,112920.0,0.0458474]
[1760163963785,1.01652091,112930.0,112920.0,0.10905567]
[1760163964510,1.01231091,112930.0,112920.0,0.14287567]
[1760163964707,1.01652091,112930.0,112920.0,0.10905567]
[1760163964933,1.01915091,112930.0,112920.0,0.06940567]
[1760163965340,1.01652091,112930.0,112920.0,0.06940567]
[1760163965546,1.01642091,112930.0,112920.0,0.06940567]
[1760163966743,1.01642091,112930.0,112920.0,0.09218567]
[1760163967713,1.01642091,112930.0,112920.0,0.06940567]
[1760163967874,1.45762091,112930.0,112920.0,0.09218567]
[1760163969540,1.61013943,112930.0,112920.0,0.15867089]
[1760163969759,0.34,112930.0,112920.0,0.33578743]
[1760163969962,0.00094631,112950.0,112940.0,0.17708517]
[1760163970164,0.1780158,112950.0,112940.0,0.3136512]
[1760163970343,0.1780158,112950.0,112940.0,0.25055517]
[1760163972006,0.5180158,112950.0,112940.0,0.25055517]
[1760163972761,0.5180158,112950.0,112940.0,0.07347]
[1760163974189,0.5180158,112950.0,112940.0,0.25055517]
[1760163975244,0.5180158,112950.0,112940.0,0.07347]
[1760163978049,0.5180158,112950.0,112940.0,0.25055517]
[1760163978269,0.00094631,112950.0,112940.0,0.25055517]
[1760163984205,0.34094631,112950.0,112940.0,0.25055517]
[1760163984642,0.34094631,112950.0,112940.0,0.32955866]
[1760163984803,0.34094631,112950.0,112940.0,0.25055517]
[1760163986036,0.00094631,112950.0,112940.0,0.25055517]
[1760163986255,0.34094631,112950.0,112940.0,0.25055517]
[1760163987311,0.00094631,112950.0,112940.0,0.25055517]
[1760163988050,0.00094631,112950.0,112930.0,0.13201714]
[1760163988051,0.51708517,112940.0,112930.0,0.13201714]
[1760163988337,0.34,112940.0,112930.0,0.25433155]
[1760163988510,0.34,112940.0,112930.0,0.33333504]
[1760163989297,0.51708517,112940.0,112930.0,0.33433504]
[1760163989504,0.34,112940.0,112930.0,0.33433504]
[1760163989915,0.34,112940.0,112930.0,0.33533504]
[1760163992038,0.51708517,112940.0,112930.0,0.33533504]
[1760163992603,0.51708517,112940.0,112930.0,0.07923365]
[1760163993550,0.52209517,112940.0,112930.0,0.04366365]
[1760163993762,0.52522517,112940.0,112930.0,0.00257365]
[1760163994196,0.52209517,112940.0,112930.0,0.00257365]
[1760163994635,0.52209517,112940.0,112930.0,0.02679365]
[1760163994867,0.52209517,112940.0,112930.0,0.04360365]
[1760163995074,0.51708517,112940.0,112930.0,0.07917365]
[1760163995278,0.52209517,112940.0,112930.0,0.04360365]
[1760163996101,0.35392026,112940.0,112930.0,0.04360365]
[1760163998480,0.34891026,112940.0,112930.0,0.04360365]
[1760163998687,0.35392026,112940.0,112930.0,0.04360365]
[1760163998881,0.34891026,112940.0,112930.0,0.04360365]
[1760163999106,0.34891026,112940.0,112930.0,0.07917365]
[1760164000894,0.35302026,112940.0,112930.0,0.04360365]
[1760164001971,1.00495884,112940.0,112930.0,0.04360365]
[1760164002334,1.00495884,112940.0,112930.0,0.01938365]
[1760164002550,1.00495884,112940.0,112930.0,0.00257365]
[1760164003569,1.00084884,112940.0,112930.0,0.04360365]
[1760164003724,1.00084884,112940.0,112930.0,0.07917365]
[1760164004042,1.00084884,112940.0,112930.0,0.2562745]
[1760164004417,0.82376367,112940.0,112930.0,0.2562745]
[1760164004795,0.17182509,112940.0,112930.0,0.2562745]
[1760164004993,0.00094631,112950.0,112940.0,0.17708517]
[1760164005222,0.34094631,112950.0,112940.0,0.25134517]
[1760164005424,0.5180158,112950.0,112940.0,0.07426]
[1760164006419,0.5180158,112950.0,112930.0,0.09638714]
[1760164006420,0.47807333,112950.0,112930.0,0.09638714]
[1760164006593,0.82902375,112940.0,112930.0,0.01738365]
[1760164007016,0.82902375,112940.0,112930.0,0.07509365]
[1760164008200,0.82902375,112940.0,112930.0,0.2521945]
[1760164008398,0.51706949,112950.0,112930.0,0.2531945]
[1760164008621,0.51706949,112950.0,112940.0,0.22848517]
[1760164008825,0.51706949,112950.0,112940.0,0.25134517]
[1760164009912,0.51206949,112950.0,112940.0,0.25134517]
[1760164011394,0.51206949,112950.0,112940.0,0.07426]
[1760164012428,0.51695949,112950.0,112940.0,0.03941]
[1760164012665,0.51695949,112950.0,112930.0,0.1944845]
[1760164012966,0.17708517,112940.0,112930.0,0.2295245]
[1760164013383,0.51206949,112950.0,112930.0,0.2537745]
[1760164013928,0.51206949,112950.0,112940.0,0.01677]
[1760164014164,0.51206949,112950.0,112940.0,0.04102]
[1760164014165,0.51695949,112950.0,112940.0,0.04102]
[1760164016572,0.51695949,112950.0,112940.0,0.12002349]
[1760164021069,0.51695949,112950.0,112940.0,0.07900349]
[1760164021295,0.52000949,112950.0,112940.0,0.07900349]
[1760164021514,0.52000949,112950.0,112940.0,0.10325349]
[1760164021515,0.51695949,112950.0,112940.0,0.10325349]
[1760164021980,1.16889807,112950.0,112940.0,0.10325349]
[1760164022184,1.16889807,112950.0,112940.0,0.07900349]
[1760164022396,1.17194807,112950.0,112940.0,0.07900349]
[1760164023557,1.16889807,112950.0,112940.0,0.07900349]
[1760164023993,0.51206949,112950.0,112940.0,0.15506349]
[1760164024297,0.335,112950.0,112940.0,0.33214866]
[1760164024509,0.65193858,112960.0,112950.0,0.17706949]
[1760164024768,0.8289924,112960.0,112950.0,0.33192864]
[1760164024940,0.99193858,112960.0,112950.0,0.33192864]
[1760164025390,1.1689924,112960.0,112950.0,0.33192864]
[1760164026672,1.1689924,112960.0,112950.0,0.25312949]
[1760164027791,1.1689924,112960.0,112950.0,0.07606]
[1760164028008,1.1689924,112960.0,112950.0,0.25312949]
[1760164028264,0.51705382,112960.0,112950.0,0.25312949]
[1760164028823,0.34,112960.0,112950.0,0.25312949]
[1760164029233,0.51705382,112960.0,112950.0,0.25312949]
[1760164029867,0.34,112960.0,112950.0,0.25312949]
[1760164030063,0.34057346,112960.0,112950.0,0.25312949]
[1760164030913,0.00057346,112960.0,112950.0,0.36384561]
[1760164031358,0.34057346,112960.0,112950.0,0.36384561]
[1760164031582,0.00057346,112960.0,112950.0,0.36384561]
[1760164032184,0.34057346,112960.0,112950.0,0.36384561]
[1760164032386,0.34057346,112960.0,112950.0,0.36484561]
[1760164032534,0.34057346,112960.0,112950.0,0.36584561]
[1760164044771,0.00057346,112960.0,112950.0,0.36584561]
[1760164047268,9.565e-05,112960.0,112950.0,0.36584561]
[1760164047500,9.565e-05,112960.0,112950.0,0.25512949]
[1760164048751,0.49473178,112960.0,112950.0,0.18836041]
[1760164048997,0.6717856,112960.0,112950.0,0.3654299]
[1760164049255,1.0153456,112960.0,112950.0,0.04302]
[1760164049855,1.0175756,112960.0,112950.0,0.002]
[1760164050055,1.0175756,112960.0,112950.0,0.08083298]
[1760164052853,1.0153456,112960.0,112950.0,0.08083298]
[1760164053058,1.0153456,112960.0,112950.0,0.10326298]
[1760164053290,1.0153456,112960.0,112950.0,0.11961298]
[1760164054081,0.51714947,112960.0,112950.0,0.15522298]
[1760164054284,1.0117856,112960.0,112950.0,0.07639]
[1760164056225,1.0117856,112960.0,112950.0,0.18669041]
[1760164056568,1.0117856,112960.0,112950.0,0.07639]
[1760164056884,1.0117856,112960.0,112950.0,0.18669041]
[1760164057410,0.51714947,112960.0,112950.0,0.3637599]
[1760164058334,0.51714947,112960.0,112950.0,0.18669041]
[1760164058538,0.51714947,112960.0,112950.0,0.3637599]
[1760164060775,0.17705382,112960.0,112950.0,0.3637599]
[1760164061069,0.17705382,112960.0,112950.0,0.25345949]
[1760164061396,0.67167646,112970.0,112950.0,0.25345949]
[1760164061600,0.49463613,112970.0,112960.0,0.22901382]
[1760164061806,0.68513589,112990.0,112970.0,0.17703815]
[1760164062002,0.68049991,112990.0,112980.0,0.07439]
[1760164062527,0.68049991,112990.0,112980.0,0.25141248]
[1760164062682,0.18586378,112990.0,112980.0,0.25141248]
[1760164062885,4.48805391,113000.0,112990.0,0.17700681]
[1760164062886,4.4524928,113000.0,112990.0,0.17700681]
[1760164063090,4.4524928,113000.0,112990.0,0.25139681]
[1760164063294,3.78086552,113000.0,112990.0,0.25139681]
[1760164063492,3.78136564,113000.0,112990.0,0.25139681]
[1760164065286,3.78136564,113000.0,112990.0,0.25239681]
[1760164065653,3.78136564,113000.0,112990.0,0.25339681]
[1760164066056,3.59097277,113000.0,112990.0,0.25339681]
[1760164068122,3.76796392,113000.0,112990.0,0.25339681]
[1760164068329,3.77025684,113000.0,112990.0,0.25339681]
[1760164068571,3.77025684,113000.0,112990.0,0.07639]
[1760164068746,3.77025684,113000.0,112990.0,0.25339681]
[1760164069324,3.77025684,113000.0,112990.0,0.07639]
[1760164069537,3.59326569,113000.0,112990.0,0.25339681]
[1760164069788,3.77025684,113000.0,112990.0,0.25339681]
[1760164071357,3.77025684,113000.0,112990.0,0.07639]
[1760164071709,3.77025684,113000.0,112990.0,0.25339681]
[1760164072281,4.11025684,113000.0,112990.0,0.07639]
[1760164073323,4.11025684,113000.0,112990.0,0.25339681]
[1760164073677,4.10025684,113000.0,112990.0,0.25339681]
[1760164074821,4.10025684,113000.0,112990.0,0.07639]
[1760164075020,4.10025684,113000.0,112990.0,0.04078]
[1760164075259,4.10025684,113000.0,112990.0,0.07556]
[1760164079665,4.59489297,113000.0,112990.0,0.07556]
[1760164079934,4.59850297,113000.0,112990.0,0.04078]
[1760164080774,4.59489297,113000.0,112990.0,0.25256681]
[1760164080965,4.10025684,113000.0,112990.0,0.25256681]
[1760164081198,3.92326569,113000.0,112990.0,0.25256681]
[1760164083587,3.92326569,113000.0,112990.0,0.33141625]
[1760164084153,4.10025684,113000.0,112990.0,0.15440944]
[1760164084536,4.10025684,113000.0,112990.0,0.33141625]
[1760164085744,3.92326569,113000.0,112990.0,0.33141625]
[1760164085944,4.59850297,113000.0,112990.0,0.08084944]
[1760164086184,4.60075297,113000.0,112990.0,0.002]
[1760164087330,4.60075297,113000.0,112990.0,0.001]
[1760164087557,4.60075297,113000.0,112990.0,0.002]
[1760164088067,4.10386684,113000.0,112990.0,0.02599]
[1760164088223,4.59850297,113000.0,112990.0,0.02599]
[1760164088458,4.59850297,113000.0,112990.0,0.02499]
[1760164088859,4.59850297,113000.0,112990.0,0.02599]
[1760164090114,4.59489297,113000.0,112990.0,0.04305]
[1760164090301,4.59850297,113000.0,112990.0,0.04305]
[1760164090447,4.3895901,113000.0,112990.0,0.04305]
[1760164090646,3.89134397,113000.0,112990.0,0.07783]
[1760164092740,3.89134397,113000.0,112990.0,0.25483681]
[1760164092965,3.71435282,113000.0,112990.0,0.25483681]
[1760164095159,3.37435282,113000.0,112990.0,0.25483681]
[1760164095360,3.37435282,113000.0,112990.0,0.33368625]
[1760164095989,3.71435282,113000.0,112990.0,0.33368625]
[1760164096954,3.71435282,113000.0,112990.0,0.36383815]
[1760164096955,3.37435282,113000.0,112990.0,0.36383815]
[1760164097135,3.37435282,113000.0,112990.0,0.28498871]
[1760164097271,3.37435282,113000.0,112990.0,0.38498871]
[1760164098093,3.37435282,113000.0,112990.0,0.4636655]
[1760164098292,3.37435282,113000.0,112990.0,0.4626655]
[1760164098508,3.37435282,113000.0,112990.0,0.8626655]
[1760164099166,3.37435282,113000.0,112990.0,0.8646655]
[1760164100570,3.37435282,113000.0,112990.0,0.78598871]
[1760164101347,3.20912413,113000.0,112990.0,0.86462194]
[1760164102513,3.20912413,113000.0,112990.0,0.83447004]
[1760164102696,3.54912413,113000.0,112990.0,0.75583681]
[1760164103317,3.54912413,113000.0,112990.0,0.83447004]
[1760164103569,3.20912413,113000.0,112990.0,0.83447004]
[1760164103976,3.20912413,113000.0,112990.0,0.86462194]
[1760164106786,3.20912413,113000.0,112990.0,1.51523589]
[1760164109322,3.20912413,113000.0,112990.0,1.43660266]
[1760164109522,3.20912413,113000.0,112990.0,1.51518221]
[1760164109722,3.20912413,113000.0,112990.0,0.86456826]
[1760164111285,3.20912413,113000.0,112990.0,0.78598871]
[1760164114101,3.04163275,113000.0,112990.0,0.78598871]
[1760164114323,3.04163275,113000.0,112990.0,1.54015219]
[1760164114485,3.04163275,113000.0,112990.0,1.46160265]
[1760164116661,3.04163275,113000.0,112990.0,0.8109887]
[1760164120188,2.00066609,113000.0,112990.0,1.53507161]
[1760164120325,1.71763623,113000.0,112990.0,1.66155039]
[1760164120529,1.67835455,113000.0,112990.0,1.5615504]
[1760164120736,1.61621878,113000.0,112990.0,1.9615504]
[1760164120944,1.61621878,113000.0,112990.0,2.1516908]
[1760164121181,1.15968599,113000.0,112990.0,2.23719981]
[1760164121384,1.15968599,113000.0,112990.0,1.77258493]
[1760164121588,0.98661261,113000.0,112990.0,1.66059713]
[1760164121800,0.98661261,113000.0,112990.0,1.65859713]
[1760164122007,0.98661261,113000.0,112990.0,1.66459713]
[1760164122217,0.98661261,113000.0,112990.0,0.98383128]
[1760164122634,0.98661261,113000.0,112990.0,0.88383129]
[1760164122859,0.98661261,113000.0,112990.0,0.43745924]
[1760164123063,0.98661261,113000.0,112990.0,0.35883681]
[1760164123274,0.98661261,113000.0,112990.0,0.75883681]
[1760164123684,0.98661261,113000.0,112990.0,0.65583681]
[1760164123895,0.98661261,113000.0,112990.0,0.65483681]
[1760164124107,0.98661261,113000.0,112990.0,0.65683681]
[1760164124539,0.98661261,113000.0,112990.0,0.68298871]
[1760164124761,0.98661261,113000.0,112990.0,0.68398871]
[1760164124961,0.98661261,113000.0,112990.0,0.76361114]
[1760164125364,0.98661261,113000.0,112990.0,0.76161114]
[1760164125571,0.98661261,113000.0,112990.0,0.86361114]
[1760164127366,0.98661261,113000.0,112990.0,0.86261114]
[1760164127535,0.98661261,113000.0,112990.0,0.86161114]